{"text_format":"1","workbook":"xlsx","n_sheets":10,"sheets":["Contents","Front Page","Physician Group Data","Physician Group List","Reference Tables","Payments Review","Multiplier Review","Service Review","Payers","System Data"],"not_rendered":{"charts":0,"images":0,"macros":1,"external_links":0,"defined_names":18,"comments":0,"pivot_tables":0},"unopened":[],"bounds":{"document_bytes":16777216,"sheet_cells":100000,"rows_first":2000,"rows_last":500,"rows_between":2000,"halvings":0,"cell_chars":16384,"cell_head_chars":4096},"cells_cut":0,"cells_raw":0,"read":"whole","date_system":"1900"}

{"sheet":"Contents","index":0,"n_rows":21,"n_cols":3,"rows_kept":21,"cut":false,"hidden":false,"merged":[[0,0,0,2],[1,0,1,2],[14,1,14,2]]}
["Payer Reporting of Relative Price"]
["Table of Contents"]
[]
[null,"Tab Name","Details"]
[null,"Front Page","Summary overview of the Workbook"]
[null,"Physician Group Data","Location for data entry by submitters"]
[null,"Physician Group List","Reference table with Physician Groups and accompanying OrgIDs"]
[null,"Reference Tables","Lookup codes for data entry are provided here"]
[null,"Payments Review","Summary of payments by Physician Group"]
[null,"Multiplier Review","Summary of multipliers by Service Group"]
[null,"Service Review","Summary of Service Groups reported by Physician Group"]
[]
[]
[]
[null,"Workbook Color Key"]
[null,null,"User Data Entry tab"]
[null,null,"Auto-populated Field"]
[null,null,"Reference Materials"]
[null,null,"Summary of Entered Data"]
[null,null,"Identified Error"]
[null,null,"Attention Required"]

{"sheet":"Front Page","index":1,"n_rows":50,"n_cols":9,"rows_kept":50,"cut":false,"hidden":false,"merged":[[33,5,33,6],[33,7,33,8],[32,1,32,8],[0,0,0,1],[1,0,1,1],[8,1,8,2],[22,1,22,2],[17,1,17,2]]}
["Payer Reporting of Relative Price"]
["A. File Overview and Payer Verification"]
[]
[]
[null,"Required Fields *"]
["Contact Name:  *"]
["Contact Email:  *",null,{"$f":"IF(ISBLANK(B7),\"\",IF(AND(RIGHT(B7,3)<>\"com\",RIGHT(B7,3)<>\"org\"),\"ERROR: Please enter a valid email address\",\"\"))","v":""}]
[]
[null,"Table A.1: File Overview"]
[null,"Payer OrgID *",{"$f":"IF(ISBLANK(iPayer),\"\",INDEX(PayersList,iPayer,1))","v":0}]
[null,"Payer Name *",{"$f":"IF(ISBLANK(iPayer),\"\",INDEX(PayersList,iPayer,2))","v":"Select Payer:"}]
[null,"Submission Year *"]
[null,"Data Year *"]
[]
[]
[]
[]
[null,"Table A.2: Data Checks"]
[null,"Physician Group Data Tab",{"$f":"IF(AND('Physician Group Data'!K3=\"\",'Physician Group Data'!L3=\"\",'Physician Group Data'!M3=\"\",'Physician Group Data'!N3=\"\",'Physician Group Data'!O3=\"\",'Physician Group Data'!P3=\"\",'Physician Group Data'!Q3=\"\"), \"Please run Data Review prior to submission\", IF((COUNTIF('Physician Group Data'!K:Q,\"*\"&\"ERROR\"&\"*\")>0)=TRUE, \"Errors identified on Physician Group Data Tab, please correct\", \"All entered data is valid\"))","v":"Please run Data Review prior to submission"}]
[null,"Service Review Tab",{"$f":"IF(AND('Physician Group Data'!K3=\"\",'Physician Group Data'!L3=\"\",'Physician Group Data'!M3=\"\",'Physician Group Data'!N3=\"\",'Physician Group Data'!O3=\"\",'Physician Group Data'!P3=\"\",'Physician Group Data'!Q3=\"\"), \"Please run Data Review prior to submission\", IF((COUNTIF('Service Review'!H:H,\"*\"&\"ERROR\"&\"*\")>0)=TRUE, \"Errors identified on Service Review Tab, please correct\", \"All entered data is valid\"))","v":"Please run Data Review prior to submission"}]
[]
[]
[null,"Table A.3: Data Review Certifications"]
[null,"Data Tab","Acknowledgement"]
[null,"I acknowledge that I have reviewed the Physician Group Data tab  *"]
[null,"I acknowledge that I have reviewed the Payments Review tab *"]
[null,"I acknowledge that I have reviewed the Multiplier Review tab *"]
[null,"I acknowledge that I have reviewed the Service Review tab *"]
[null,"RP Comments"]
[null,"Additional Comments"]
[]
[]
[null,"Table A.4: In-Network Providers"]
[null,null,null,null,null,"Providers",null,"Percent of Payments"]
[null,"Insurance Category","Product Type","Total Payments","Number of Provider Groups","In Network *","Out of Network *","In Network *","Out of Network *"]
[null,null,null,null,{"$f":"IF(B36=\"\",\"\",SUM(--(FREQUENCY(IF(('Physician Group Data'!N:N = 'Front Page'!B36)*('Physician Group Data'!O:O = 'Front Page'!C36),'Physician Group Data'!A$1:A$2),'Physician Group Data'!A$1:A$2)>0)))","v":""}]
[null,null,null,null,{"$f":"IF(B37=\"\",\"\",SUM(--(FREQUENCY(IF(('Physician Group Data'!N:N = 'Front Page'!B37)*('Physician Group Data'!O:O = 'Front Page'!C37),'Physician Group Data'!A$1:A$2),'Physician Group Data'!A$1:A$2)>0)))","v":""}]
[null,null,null,null,{"$f":"IF(B38=\"\",\"\",SUM(--(FREQUENCY(IF(('Physician Group Data'!N:N = 'Front Page'!B38)*('Physician Group Data'!O:O = 'Front Page'!C38),'Physician Group Data'!A$1:A$2),'Physician Group Data'!A$1:A$2)>0)))","v":""}]
[null,null,null,null,{"$f":"IF(B39=\"\",\"\",SUM(--(FREQUENCY(IF(('Physician Group Data'!N:N = 'Front Page'!B39)*('Physician Group Data'!O:O = 'Front Page'!C39),'Physician Group Data'!A$1:A$2),'Physician Group Data'!A$1:A$2)>0)))","v":""}]
[null,null,null,null,{"$f":"IF(B40=\"\",\"\",SUM(--(FREQUENCY(IF(('Physician Group Data'!N:N = 'Front Page'!B40)*('Physician Group Data'!O:O = 'Front Page'!C40),'Physician Group Data'!A$1:A$2),'Physician Group Data'!A$1:A$2)>0)))","v":""}]
[null,null,null,null,{"$f":"IF(B41=\"\",\"\",SUM(--(FREQUENCY(IF(('Physician Group Data'!N:N = 'Front Page'!B41)*('Physician Group Data'!O:O = 'Front Page'!C41),'Physician Group Data'!A$1:A$2),'Physician Group Data'!A$1:A$2)>0)))","v":""}]
[null,null,null,null,{"$f":"IF(B42=\"\",\"\",SUM(--(FREQUENCY(IF(('Physician Group Data'!N:N = 'Front Page'!B42)*('Physician Group Data'!O:O = 'Front Page'!C42),'Physician Group Data'!A$1:A$2),'Physician Group Data'!A$1:A$2)>0)))","v":""}]
[null,null,null,null,{"$f":"IF(B43=\"\",\"\",SUM(--(FREQUENCY(IF(('Physician Group Data'!N:N = 'Front Page'!B43)*('Physician Group Data'!O:O = 'Front Page'!C43),'Physician Group Data'!A$1:A$2),'Physician Group Data'!A$1:A$2)>0)))","v":""}]
[null,null,null,null,{"$f":"IF(B44=\"\",\"\",SUM(--(FREQUENCY(IF(('Physician Group Data'!N:N = 'Front Page'!B44)*('Physician Group Data'!O:O = 'Front Page'!C44),'Physician Group Data'!A$1:A$2),'Physician Group Data'!A$1:A$2)>0)))","v":""}]
[null,null,null,null,{"$f":"IF(B45=\"\",\"\",SUM(--(FREQUENCY(IF(('Physician Group Data'!N:N = 'Front Page'!B45)*('Physician Group Data'!O:O = 'Front Page'!C45),'Physician Group Data'!A$1:A$2),'Physician Group Data'!A$1:A$2)>0)))","v":""}]
[null,null,null,null,{"$f":"IF(B46=\"\",\"\",SUM(--(FREQUENCY(IF(('Physician Group Data'!N:N = 'Front Page'!B46)*('Physician Group Data'!O:O = 'Front Page'!C46),'Physician Group Data'!A$1:A$2),'Physician Group Data'!A$1:A$2)>0)))","v":""}]
[null,null,null,null,{"$f":"IF(B47=\"\",\"\",SUM(--(FREQUENCY(IF(('Physician Group Data'!N:N = 'Front Page'!B47)*('Physician Group Data'!O:O = 'Front Page'!C47),'Physician Group Data'!A$1:A$2),'Physician Group Data'!A$1:A$2)>0)))","v":""}]
[null,null,null,null,{"$f":"IF(B48=\"\",\"\",SUM(--(FREQUENCY(IF(('Physician Group Data'!N:N = 'Front Page'!B48)*('Physician Group Data'!O:O = 'Front Page'!C48),'Physician Group Data'!A$1:A$2),'Physician Group Data'!A$1:A$2)>0)))","v":""}]
[null,null,null,null,{"$f":"IF(B49=\"\",\"\",SUM(--(FREQUENCY(IF(('Physician Group Data'!N:N = 'Front Page'!B49)*('Physician Group Data'!O:O = 'Front Page'!C49),'Physician Group Data'!A$1:A$2),'Physician Group Data'!A$1:A$2)>0)))","v":""}]
[null,null,null,null,{"$f":"IF(B50=\"\",\"\",SUM(--(FREQUENCY(IF(('Physician Group Data'!N:N = 'Front Page'!B50)*('Physician Group Data'!O:O = 'Front Page'!C50),'Physician Group Data'!A$1:A$2),'Physician Group Data'!A$1:A$2)>0)))","v":""}]

{"sheet":"Physician Group Data","index":2,"n_rows":1,"n_cols":17,"rows_kept":1,"cut":false,"hidden":false,"merged":[]}
["ProviderGroupOrgID","LocalPracticeOrgID","InsuranceCategoryCode","ProductTypeCode","PediatricIndicator","Service","MultiplierIndicator","Multiplier","ClaimsPayments","NonClaimsPayments","TotalPayments","ProviderGroup","LocalPracticeGroup","InsuranceCategory","ProductType","MultiplierType","DataChecks"]

{"sheet":"Physician Group List","index":3,"n_rows":105,"n_cols":8,"rows_kept":105,"cut":false,"hidden":false,"merged":[]}
["OrgID","Physician Group",null,null,null,null,"Unique","All"]
[10910,"Acton Medical Associates"]
[999999,"Aggregate Physicians Paid on a Fee Schedule"]
[9995,"Atrius Health"]
[8643,"Baycare Health Partners"]
[3258,"Baystate Brightwood Health Center"]
[11490,"Baystate Medical Practice"]
[14417,"Baystate Westfield Medical Corporation"]
[11794,"Berkshire Faculty Services"]
[3106,"Berkshire Health Systems"]
[12118,"Berkshire Orthopaedic Associates"]
[10968,"Beth Israel Deaconess Care Organization (BIDCO)"]
[16665,"Beth Israel Lahey Health"]
[14418,"BMC Faculty Practice Foundation"]
[10969,"Boston Medical Center Mgt Service"]
[13198,"Boston University Affiliated Physicians"]
[11,"Bowdoin Street Health Center"]
[10996,"Brigham and Women's Physicians Organization"]
[8747,"Cambridge Health Alliance Physician Organization"]
[11812,"Cape Cod Preferred Physicians"]
[125,"Caring Health Center, Inc."]
[9323,"CD Practice Associates"]
[10971,"Central Massachusetts Independent Physician Assoc. (CMIPA)"]
[10997,"Charles River Medical Associates, P.C."]
[12085,"Children's Health Care"]
[12043,"Children's Hospital Pediatric Associates"]
[12042,"Children's Hospital Physicians"]
[14420,"Circle Health Physicians Inc"]
[13120,"Coastal Medical Associates, Inc"]
[13118,"Community Medical Associates, Inc."]
[11761,"Community Physicians Associates"]
[12159,"Cooley Dickinson PHO"]
[12956,"Dana-Farber Cancer Care Network,Inc"]
[19,"East Boston Neighborhood Health Center"]
[10999,"Emerson Hospital And Emerson PHO"]
[999998,"For Non-Fee Schedule Paid"]
[64,"Greater Lawrence Family Health Center, Inc."]
[7895,"Hallmark Health Medical Associates"]
[348,"Harrington Physician Services"]
[9914,"Harvard Medical Faculty Physicians at Beth Israel Deaconess Medical Center"]
[4932,"Harvard Vanguard Medical Associates"]
[12950,"Health Express"]
[10976,"Heywood Medical Group"]
[12037,"Jordan Physician Associates, Inc"]
[11808,"Joslin Clinic"]
[14421,"Lahey Clinic"]
[17687,"Lahey Clinical Performance Accountable Care Organization"]
[6546,"Lahey Hospital and Medical Center"]
[14422,"Lahey Physician Community Org"]
[10977,"Lawrence General IPA (d/b/a Choice Plus Network)"]
[20451,"Lawrence Integrated Health Provider Network, LLC"]
[20260,"Lawrence Medical Center"]
[10978,"Lowell General PHO"]
[12139,"Massachusetts Eye and Ear Associates (Physician Group)"]
[14423,"Massachusetts Eye and Ear Associates, Inc"]
[11002,"Massachusetts General Hospital Physicians Organization"]
[9324,"Massachusetts General Physicians Organization"]
[16543,"MedExpress"]
[11810,"Medical Affiliates of Cape Cod Inc"]
[11403,"Medical Care of Boston Management Corporation"]
[12151,"Mercy Inpatient Medical Associates, Inc"]
[14424,"Mercy Medical Group"]
[14425,"Mercy Specialist Physicians"]
[11394,"MetroWest Physicians Services"]
[8750,"Milford Regional Physician Group"]
[10826,"Mount Auburn Cambridge IPA"]
[11404,"Mount Auburn Professional Services"]
[16579,"Nantucket Physician Organization"]
[8655,"New England Baptist Medical Associates"]
[17749,"New England Baptist Physician Group"]
[12448,"New England Orthopedic Surgeons, Inc"]
[9916,"New England Quality Care Alliance (NEQCA)"]
[8644,"Newton-Wellesley Physician Hospital Group"]
[11004,"North Shore Physicians Group"]
[11408,"Northeast Medical Practice"]
[8646,"Northeast PHO (NEPHO)"]
[8745,"Partners Community Physician Organization"]
[9923,"Pediatric Physicians' Organization at Children's (PPOC)"]
[14426,"Physicians Organization at Children's Hospital, Inc. and Foundation"]
[16532,"Pioneer Valley Cardiology Associates, Inc"]
[10972,"Reliant Medical Group"]
[16533,"Riverbend Medical Group, Inc"]
[14427,"Saint Vincent Medical Company"]
[11915,"Seacoast Affiliated Group Practice"]
[10327,"Signature Healthcare Medical Group"]
[11898,"Sisters of Providence Physicians"]
[120,"South Cove Community Health Center"]
[10965,"South Shore Medical Center"]
[11393,"South Shore Physician Hospital Organization (SSPHO)"]
[4027,"Southcoast Health System"]
[11497,"Southcoast Physician Group"]
[11016,"Southcoast Physicians Network"]
[11400,"Steward Medical Group"]
[11058,"Steward Network Services"]
[11397,"Sturdy Memorial Associates"]
[11801,"The Affiliated Physicians Group"]
[11018,"The Childrens Hospital Corporation"]
[17750,"Tufts Medical Center Community Care"]
[10991,"Tufts Medical Center Physician Organization"]
[6755,"UMass Memorial Health Care"]
[11773,"UMass Memorial Medical Center - Based Practices"]
[9784,"UMass Memorial Medical Group"]
[12775,"Wellforce"]
[14428,"Western Mass Physician Associates"]
[12022,"Winchester Physician Associates"]

{"sheet":"Reference Tables","index":4,"n_rows":35,"n_cols":3,"rows_kept":35,"cut":false,"hidden":false,"merged":[]}
["Relative Price Submission"]
["Reference Tables"]
[]
[]
[null,"Table D.1 - Hospital Types"]
[null,"Hospital Type Code","Description"]
[null,1,"Acute Hospital"]
[null,2,"Psychiatric or Substance Abuse Hospital or Acute Hospital Behavioral Health only"]
[null,3,"Chronic Hospital"]
[null,4,"Rehabilitation Hospital"]
[]
[]
[null,"Table D.2 - Insurance Categories"]
[null,"Insurance Category Code ","Description"]
[null,1,"Medicare Advantage"]
[null,2,"Medicaid MCO/ACO-A"]
[null,3,"Commercial (self and fully insured)"]
[null,4,"SCO"]
[null,5,"OneCare"]
[null,6,"Other"]
[]
[]
[null,"Table D.3 - Product Types"]
[null,"Product Type Code","Description"]
[null,1,"HMO and POS"]
[null,2,"PPO"]
[null,3,"Indemnity"]
[null,4,"Other"]
[]
[]
[null,"Table D.4 - Multiplier Indicators"]
[null,"Service Multiplier Indicator","Description"]
[null,1,"Negotiated multiplier (not calculated)"]
[null,2,"Calculated payment-derived multiplier"]
[null,3,"Standard per unit rate "]

{"sheet":"Payments Review","index":5,"n_rows":4,"n_cols":7,"rows_kept":4,"cut":false,"hidden":false,"merged":[]}
["Please review the Total Payments reported for each Physician Group"]
[]
["Table E.1: Payment Summary"]
["ProviderGroupOrgID","LocalPracticeOrgID","InsuranceCategoryCode","ProductTypeCode","Sum of ClaimsPayments","Sum of NonClaimsPayments","Sum of Total Payments"]

{"sheet":"Multiplier Review","index":6,"n_rows":4,"n_cols":9,"rows_kept":4,"cut":false,"hidden":false,"merged":[]}
["Please review the Range of Multipliers reported for each Service"]
[]
["Table F.1: Multiplier Summary"]
["InsuranceCategoryCode","ProductTypeCode","Service","Min of Multiplier","Max of Multiplier","Average of Multiplier","Min of Total Payments","Max of Total Payments","Average of Total Payments"]

{"sheet":"Service Review","index":7,"n_rows":4,"n_cols":8,"rows_kept":4,"cut":false,"hidden":false,"merged":[]}
["Please review the Services reported for each Physician Group"]
[]
["Table G.1: Service Group Summary"]
["ProviderGroupOrgID","LocalPracticeOrgID","PediatricIndicator","InsuranceCategoryCode","ProductTypeCode","Service","Count of Multiplier","Data Review"]

{"sheet":"Payers","index":8,"n_rows":19,"n_cols":3,"rows_kept":19,"cut":false,"hidden":true,"merged":[]}
["OrgID","Payer Name","ShortName"]
[null,"Select Payer:","Select Payer:"]
[290,"Aetna Health Inc. (PA) - Aetna Life Ins. Co. (ALIC)","Aetna"]
[291,"Blue Cross Blue Shield of Massachusetts","BCBS"]
[296,"Fallon Community Health Plan","Fallon"]
[300,"Harvard Pilgrim Health Care","HPHC"]
[301,"Health New England, Inc.","HNE"]
[308,"Tufts Associated Health Maintenance Organization, Inc.","THP"]
[310,"UniCare Life and Health Insurance Company","Unicare"]
[312,"United Healthcare Insurance Company","United"]
[3156,"MassHealth","MassHealth"]
[3735,"Mass General Brigham Health Plan, Inc.","MGBHP"]
[12103,"Tufts Medicare Advantage","TuftsMedicare"]
[10728,"Commonwealth Care Alliance","CCA"]
[10926,"United Healthcare Insurance Company - Medicare Advantage","UnitedMedicare"]
[11226,"WellSense Health Plan","WellSense"]
[11227,"Network Health, LLC  (Medicaid MCO)","THPP"]
[11474,"CIGNA Health and Life Insurance Company (CHLIC)","Cigna"]
[12814,"United Healthcare Insurance - Medicare & Retirement (SCO)","UnitedSCO"]

{"sheet":"System Data","index":9,"n_rows":38,"n_cols":4,"rows_kept":38,"cut":false,"hidden":true,"merged":[]}
[true,"OnSaveFlag",{"$f":"ROWS(_xlfn._xlws.FILTER('Physician Group List'!A$1:B$105,('Physician Group List'!A$1:A$105<>\"\")+('Physician Group List'!B$1:B$105<>\"\")))","v":105},"Org Count"]
[1,"iPayer",{"$f":"ROWS(_xlfn._xlws.FILTER('Physician Group Data'!A:J,('Physician Group Data'!A:A<>\"\")+('Physician Group Data'!B:B<>\"\")+('Physician Group Data'!C:C<>\"\")+('Physician Group Data'!D:D<>\"\")+('Physician Group Data'!E:E<>\"\")+('Physician Group Data'!F:F<>\"\")+('Physician Group Data'!G:G<>\"\")+('Physician Group Data'!H:H<>\"\")+('Physician Group Data'!I:I<>\"\")+('Physician Group Data'!J:J<>\"\")))+1","v":2},"Data Count"]
[{"$f":"A4&\"_\"&A5&\"_\"&A6&\"_\"&A7&\"_\"&A8&\".xlsm\"","v":"0_Select Payer:_0_116_PG.xlsm"},"vFileName"]
[{"$f":"IF(ISBLANK(iPayer),\"\",INDEX(PayersList,iPayer,1))","v":0},"vPayerOrgID"]
[{"$f":"IF(ISBLANK(iPayer),\"\",INDEX(PayersList,iPayer,3))","v":"Select Payer:"},"vPayerShortName"]
[{"$f":"'Front Page'!C12","v":0},"vYear"]
[116,"FilingTypeID"]
["PG","TemplateType"]
[]
[]
[]
[]
[]
[]
[]
[]
[]
[{"$f":"IF(AND(A19=TRUE,A34=TRUE),TRUE,FALSE)","v":false},"cfAllFrontPageRequriedFields"]
[{"$f":"IF(AND(A20=TRUE,A21=TRUE,A23=TRUE,A24=TRUE,A25=TRUE,A26),TRUE,FALSE)","v":false},"A. FrontPage WorkSheet"]
[{"$f":"IF('Front Page'!B6=\"\",  FALSE, TRUE)","v":false},"vContactName"]
[{"$f":"IF(OR('Front Page'!B7=\"\",'Front Page'!C7=\"ERROR: Please enter a valid email address\"),FALSE,TRUE)","v":false},"vContactEmail"]
[null,"cfFrontPageTableA1RequiredFields"]
[{"$f":"IF(OR('Front Page'!C10=\"\",'Front Page'!C10=0),FALSE,TRUE)","v":false},"vPayerOrgID"]
[{"$f":"IF(OR('Front Page'!C11=\"\",'Front Page'!C11=\"Select Payer:\"),FALSE,TRUE)","v":false},"vPayerName"]
[{"$f":"IF('Front Page'!C12=\"\", FALSE,TRUE)","v":false},"vSubmissionYear"]
[{"$f":"IF('Front Page'!C13=\"\", FALSE,TRUE)","v":false},"vDataYear"]
[]
[]
[{"$f":"IF(AND(A30=TRUE,A31=TRUE),TRUE,FALSE)","v":false},"cfFrontPageTableA2RequiredFields"]
[{"$f":"IF(ISNUMBER(SEARCH(\"All entered data is valid\",'Front Page'!C19)), TRUE,FALSE)","v":false},"vPhysicianGroupDataTab"]
[{"$f":"IF(ISNUMBER(SEARCH(\"All entered data is valid\",'Front Page'!C20)), TRUE,FALSE)","v":false},"vServiceReviewTab"]
[]
[]
[{"$f":"IF(AND(A35=TRUE,A36=TRUE,A37=TRUE,A38=TRUE),TRUE,FALSE)","v":false},"cfFrontPageTableA3RequiredFields"]
[{"$f":"IF('Front Page'!C25=\"\", FALSE,TRUE)","v":false},"vAcknowledgeReviewedOther ProviderDataTab"]
[{"$f":"IF('Front Page'!C26=\"\",FALSE,TRUE)","v":false},"vAcknowledgeReviewedPaymentsReviewTab"]
[{"$f":"IF('Front Page'!C27=\"\",FALSE,TRUE)","v":false},"vAcknowledgeReviewedMultiplierReviewTab"]
[{"$f":"IF('Front Page'!C28=\"\",FALSE,TRUE)","v":false},"vAcknowledgeReviewedServiceReviewTab"]